[Event "Titled Tuesday Blitz July 4 Early 2023"]
[White "Mendonca, Leon Luke"]
[Black "Estrada Nieto, Julian"]
[WhiteFideId "35028561"]
[BlackFideId "5101018"]
[WhiteElo "2786"]
[BlackElo "2557"]
[Result "1-0"]
[Round "4"]
[TimeControl "180+2"]
[Date "2023.07.04"]
[WhiteClock "0:00:35"]
[BlackClock "0:00:02"]
[Board "53"]

1. e4 {[%clk 0:03:00]}  e5 {[%clk 0:02:58]} 2. Nf3 {[%clk 0:03:00]}  Nc6 {[%clk 0:02:59]} 3. Bc4 {[%clk 0:03:01]}  Bc5 {[%clk 0:02:58]} 4. d3 {[%clk 0:03:01]}  Nf6 {[%clk 0:02:58]} 5. h3 {[%clk 0:03:01]}  d6 {[%clk 0:02:58]} 6. a4 {[%clk 0:03:00]}  a6 {[%clk 0:02:58]} 7. Nbd2 {[%clk 0:02:55]}  Ba7 {[%clk 0:02:57]} 8. Nf1 {[%clk 0:02:55]}  Be6 {[%clk 0:02:49]} 9. Bxe6 {[%clk 0:02:54]}  fxe6 {[%clk 0:02:49]} 10. Be3 {[%clk 0:02:55]}  O-O {[%clk 0:02:46]} 11. Bxa7 {[%clk 0:02:55]}  Nxa7 {[%clk 0:02:45]} 12. Ng3 {[%clk 0:02:55]}  Nc6 {[%clk 0:02:45]} 13. O-O {[%clk 0:02:55]}  h6 {[%clk 0:02:36]} 14. c3 {[%clk 0:02:52]}  Qe8 {[%clk 0:02:35]} 15. Re1 {[%clk 0:02:47]}  Nh5 {[%clk 0:02:16]} 16. Nxh5 {[%clk 0:02:46]}  Qxh5 {[%clk 0:02:15]} 17. Qb3 {[%clk 0:02:28]}  Nd8 {[%clk 0:02:03]} 18. Re3 {[%clk 0:02:26]}  a5 {[%clk 0:01:54]} 19. d4 {[%clk 0:02:14]}  exd4 {[%clk 0:01:47]} 20. cxd4 {[%clk 0:02:15]}  Qf7 {[%clk 0:01:39]} 21. Rc1 {[%clk 0:02:10]}  b6 {[%clk 0:01:16]} 22. Rec3 {[%clk 0:01:43]}  Ra7 {[%clk 0:01:09]} 23. d5 {[%clk 0:01:37]}  e5 {[%clk 0:00:59]} 24. Qc2 {[%clk 0:01:30]}  Qg6 {[%clk 0:00:47]} 25. Nh4 {[%clk 0:01:13]}  Qg5 {[%clk 0:00:35]} 26. Nf5 {[%clk 0:01:05]}  Rf7 {[%clk 0:00:18]} 27. Qe2 {[%clk 0:00:45]}  g6 {[%clk 0:00:14]} 28. h4 {[%clk 0:00:41]}  Qf6 {[%clk 0:00:05]} 29. Nxh6+ {[%clk 0:00:40]}  Kh7 {[%clk 0:00:06]} 30. Nxf7 {[%clk 0:00:39]}  Qxf7 {[%clk 0:00:06]} 31. Qg4 {[%clk 0:00:37]}  Kh6 {[%clk 0:00:05]} 32. Qg5+ {[%clk 0:00:35]}  Kh7 {[%clk 0:00:02]} 33. h5 {[%clk 0:00:35]} 1-0


[Site "https://www.chess.com"]

[Event "Titled Tuesday Blitz July 4 Early 2023"]
[White "Ozates, Tuna"]
[Black "Rustemov, Alexander"]
[WhiteFideId "6354521"]
[BlackFideId "4119002"]
[WhiteElo "2557"]
[BlackElo "2783"]
[Result "0-1"]
[Round "4"]
[TimeControl "180+2"]
[Date "2023.07.04"]
[WhiteClock "0:02:16"]
[BlackClock "0:02:18"]
[Board "54"]

1. e4 {[%clk 0:02:59]}  e6 {[%clk 0:02:59]} 2. d4 {[%clk 0:02:58]}  d5 {[%clk 0:02:59]} 3. e5 {[%clk 0:02:56]}  c5 {[%clk 0:02:59]} 4. c3 {[%clk 0:02:57]}  Qb6 {[%clk 0:02:59]} 5. Nf3 {[%clk 0:02:58]}  Bd7 {[%clk 0:02:59]} 6. a3 {[%clk 0:02:57]}  Bb5 {[%clk 0:02:58]} 7. Bxb5+ {[%clk 0:02:57]}  Qxb5 {[%clk 0:02:57]} 8. b4 {[%clk 0:02:58]}  cxd4 {[%clk 0:02:57]} 9. cxd4 {[%clk 0:02:59]}  Nd7 {[%clk 0:02:58]} 10. Nc3 {[%clk 0:02:58]}  Qc6 {[%clk 0:02:57]} 11. Bd2 {[%clk 0:02:56]}  Nb6 {[%clk 0:02:58]} 12. O-O {[%clk 0:02:56]}  Nc4 {[%clk 0:02:57]} 13. Qe2 {[%clk 0:02:56]}  Ne7 {[%clk 0:02:55]} 14. Rfc1 {[%clk 0:02:57]}  Qd7 {[%clk 0:02:46]} 15. Bg5 {[%clk 0:02:43]}  h6 {[%clk 0:02:42]} 16. Bf4 {[%clk 0:02:39]}  Rc8 {[%clk 0:02:40]} 17. a4 {[%clk 0:02:39]}  Nc6 {[%clk 0:02:38]} 18. b5 {[%clk 0:02:38]}  N6a5 {[%clk 0:02:37]} 19. Rab1 {[%clk 0:02:36]}  Ba3 {[%clk 0:02:36]} 20. Rc2 {[%clk 0:02:36]}  Be7 {[%clk 0:02:36]} 21. Nd2 {[%clk 0:02:31]}  Na3 {[%clk 0:02:35]} 22. Rbc1 {[%clk 0:02:31]}  Nxc2 {[%clk 0:02:34]} 23. Rxc2 {[%clk 0:02:32]}  Bb4 {[%clk 0:02:27]} 24. Qd3 {[%clk 0:02:25]}  O-O {[%clk 0:02:20]} 25. Nb3 {[%clk 0:02:16]}  Nxb3 {[%clk 0:02:18]} 0-1


[Site "https://www.chess.com"]

[Event "Titled Tuesday Blitz July 4 Early 2023"]
[White "Ashraf, Artin"]
[Black "Zavgorodniy, Sergiy"]
[WhiteFideId "22514805"]
[BlackFideId "14110148"]
[WhiteElo "2756"]
[BlackElo "2551"]
[Result "0-1"]
[Round "4"]
[TimeControl "180+2"]
[Date "2023.07.04"]
[WhiteClock "0:00:00"]
[BlackClock "0:01:02"]
[Board "56"]

1. Nf3 {[%clk 0:02:59]}  Nf6 {[%clk 0:02:58]} 2. c4 {[%clk 0:02:59]}  d6 {[%clk 0:02:57]} 3. e3 {[%clk 0:02:57]}  e5 {[%clk 0:02:57]} 4. d4 {[%clk 0:02:57]}  e4 {[%clk 0:02:57]} 5. Nfd2 {[%clk 0:02:57]}  c6 {[%clk 0:02:57]} 6. Nc3 {[%clk 0:02:54]}  d5 {[%clk 0:02:58]} 7. Be2 {[%clk 0:02:55]}  Bb4 {[%clk 0:02:57]} 8. Qb3 {[%clk 0:02:53]}  Bxc3 {[%clk 0:02:56]} 9. Qxc3 {[%clk 0:02:54]}  O-O {[%clk 0:02:57]} 10. b3 {[%clk 0:02:53]}  Re8 {[%clk 0:02:56]} 11. h3 {[%clk 0:02:53]}  Nbd7 {[%clk 0:02:55]} 12. Ba3 {[%clk 0:02:51]}  Nf8 {[%clk 0:02:55]} 13. O-O-O {[%clk 0:02:41]}  dxc4 {[%clk 0:02:30]} 14. bxc4 {[%clk 0:02:30]}  b5 {[%clk 0:02:27]} 15. d5 {[%clk 0:02:11]}  cxd5 {[%clk 0:02:16]} 16. cxb5 {[%clk 0:02:05]}  Be6 {[%clk 0:02:10]} 17. Kb2 {[%clk 0:01:54]}  a6 {[%clk 0:02:08]} 18. bxa6 {[%clk 0:01:48]}  N8d7 {[%clk 0:01:57]} 19. Nb3 {[%clk 0:01:46]}  Nb6 {[%clk 0:01:55]} 20. Ka1 {[%clk 0:01:40]}  Nfd7 {[%clk 0:01:44]} 21. Na5 {[%clk 0:01:30]}  Na4 {[%clk 0:01:39]} 22. Qb4 {[%clk 0:01:20]}  Qf6+ {[%clk 0:01:36]} 23. Qd4 {[%clk 0:01:11]}  Nc3 {[%clk 0:01:27]} 24. Qxf6 {[%clk 0:00:34]}  Nxf6 {[%clk 0:01:28]} 25. Rd2 {[%clk 0:00:16]}  Nxe2 {[%clk 0:01:28]} 26. Rxe2 {[%clk 0:00:17]}  Rxa6 {[%clk 0:01:28]} 27. Bb4 {[%clk 0:00:17]}  Rea8 {[%clk 0:01:29]} 28. Rb1 {[%clk 0:00:13]}  h5 {[%clk 0:01:28]} 29. Nb3 {[%clk 0:00:12]}  Nd7 {[%clk 0:01:16]} 30. Nd4 {[%clk 0:00:13]}  Ne5 {[%clk 0:01:14]} 31. Rc2 {[%clk 0:00:10]}  Nc4 {[%clk 0:01:12]} 32. Rb3 {[%clk 0:00:06]}  Bd7 {[%clk 0:01:07]} 33. Rbc3 {[%clk 0:00:04]}  h4 {[%clk 0:01:06]} 34. Nb3 {[%clk 0:00:04]}  Rg6 {[%clk 0:01:05]} 35. Nc5 {[%clk 0:00:02]}  Ba4 {[%clk 0:01:05]} 36. Nxa4 {[%clk 0:00:01]}  Rxa4 {[%clk 0:01:06]} 37. f4 {[%clk 0:00:01]}  Rxb4 {[%clk 0:01:05]} 38. Rb3 {[%clk 0:00:01]}  Rxb3 {[%clk 0:01:03]} 39. axb3 {[%clk 0:00:02]}  Nxe3 {[%clk 0:01:04]} 40. Rc8+ {[%clk 0:00:02]}  Kh7 {[%clk 0:01:03]} 41. b4 {[%clk 0:00:03]}  Rb6 {[%clk 0:01:02]} 42. b5 {[%clk 0:00:00]}  Rxb5 {[%clk 0:01:02]} 0-1


[Site "https://www.chess.com"]

[Event "Titled Tuesday Blitz July 4 Early 2023"]
[White "David, Bogdan-Emanuel"]
[Black "Rakhimzhan_Alen"]
[WhiteFideId "1229907"]
[WhiteElo "2540"]
[BlackElo "2719"]
[Result "0-1"]
[Round "4"]
[TimeControl "180+2"]
[Date "2023.07.04"]
[WhiteClock "0:00:01"]
[BlackClock "0:00:05"]
[Board "63"]

1. e4 {[%clk 0:03:00]}  c5 {[%clk 0:02:57]} 2. Nc3 {[%clk 0:03:00]}  Nc6 {[%clk 0:02:57]} 3. Bb5 {[%clk 0:03:00]}  Nd4 {[%clk 0:02:53]} 4. Nf3 {[%clk 0:03:00]}  a6 {[%clk 0:02:52]} 5. Bd3 {[%clk 0:02:59]}  Nc6 {[%clk 0:02:53]} 6. O-O {[%clk 0:02:58]}  g6 {[%clk 0:02:52]} 7. Re1 {[%clk 0:02:53]}  Bg7 {[%clk 0:02:52]} 8. e5 {[%clk 0:02:48]}  Qc7 {[%clk 0:02:51]} 9. Qe2 {[%clk 0:02:48]}  b5 {[%clk 0:02:44]} 10. a4 {[%clk 0:02:43]}  c4 {[%clk 0:02:20]} 11. Be4 {[%clk 0:02:33]}  Rb8 {[%clk 0:02:18]} 12. Nd5 {[%clk 0:02:04]}  Qd8 {[%clk 0:02:01]} 13. d4 {[%clk 0:01:48]}  cxd3 {[%clk 0:01:54]} 14. Bxd3 {[%clk 0:01:45]}  Nh6 {[%clk 0:01:31]} 15. axb5 {[%clk 0:01:17]}  axb5 {[%clk 0:01:32]} 16. Nf6+ {[%clk 0:00:52]}  Kf8 {[%clk 0:01:22]} 17. Nd5 {[%clk 0:00:37]}  Nf5 {[%clk 0:01:04]} 18. Bxf5 {[%clk 0:00:32]}  gxf5 {[%clk 0:01:05]} 19. Bg5 {[%clk 0:00:32]}  h6 {[%clk 0:00:54]} 20. Bh4 {[%clk 0:00:32]}  h5 {[%clk 0:00:20]} 21. Qd3 {[%clk 0:00:31]}  Rh6 {[%clk 0:00:09]} 22. Qxf5 {[%clk 0:00:18]}  d6 {[%clk 0:00:07]} 23. exd6 {[%clk 0:00:13]}  Bxf5 {[%clk 0:00:08]} 24. dxe7+ {[%clk 0:00:13]}  Nxe7 {[%clk 0:00:08]} 25. Bxe7+ {[%clk 0:00:14]}  Qxe7 {[%clk 0:00:06]} 26. Nxe7 {[%clk 0:00:14]}  Bxc2 {[%clk 0:00:05]} 27. Rac1 {[%clk 0:00:13]}  Bh7 {[%clk 0:00:04]} 28. Rc7 {[%clk 0:00:13]}  Re6 {[%clk 0:00:03]} 29. Rxe6 {[%clk 0:00:12]}  fxe6 {[%clk 0:00:04]} 30. Nc6 {[%clk 0:00:12]}  Ra8 {[%clk 0:00:04]} 31. h3 {[%clk 0:00:12]}  Be4 {[%clk 0:00:04]} 32. Ng5 {[%clk 0:00:12]}  Bd5 {[%clk 0:00:03]} 33. f4 {[%clk 0:00:05]}  Bxb2 {[%clk 0:00:02]} 34. Ne5 {[%clk 0:00:04]}  Bd4+ {[%clk 0:00:02]} 35. Kh2 {[%clk 0:00:03]}  Bxe5 {[%clk 0:00:02]} 36. fxe5 {[%clk 0:00:03]}  Ra2 {[%clk 0:00:03]} 37. Rc8+ {[%clk 0:00:03]}  Ke7 {[%clk 0:00:03]} 38. Kg3 {[%clk 0:00:03]}  Rxg2+ {[%clk 0:00:03]} 39. Kh4 {[%clk 0:00:03]}  b4 {[%clk 0:00:03]} 40. Rb8 {[%clk 0:00:03]}  b3 {[%clk 0:00:04]} 41. Kxh5 {[%clk 0:00:04]}  b2 {[%clk 0:00:04]} 42. h4 {[%clk 0:00:04]}  Ba2 {[%clk 0:00:05]} 43. Rb7+ {[%clk 0:00:02]}  Ke8 {[%clk 0:00:04]} 44. Ne4 {[%clk 0:00:03]}  b1=Q {[%clk 0:00:03]} 45. Nf6+ {[%clk 0:00:03]}  Kd8 {[%clk 0:00:04]} 46. Rxb1 {[%clk 0:00:03]}  Bxb1 {[%clk 0:00:03]} 47. Kh6 {[%clk 0:00:04]}  Bf5 {[%clk 0:00:03]} 48. Kh5 {[%clk 0:00:05]}  Kc7 {[%clk 0:00:03]} 49. Kh6 {[%clk 0:00:05]}  Kb6 {[%clk 0:00:04]} 50. h5 {[%clk 0:00:06]}  Kc5 {[%clk 0:00:04]} 51. Ne8 {[%clk 0:00:06]}  Kd4 {[%clk 0:00:04]} 52. Nd6 {[%clk 0:00:03]}  Kxe5 {[%clk 0:00:04]} 53. Nc4+ {[%clk 0:00:03]}  Kd4 {[%clk 0:00:04]} 54. Ne3 {[%clk 0:00:03]}  Rh2 {[%clk 0:00:02]} 55. Nf1 {[%clk 0:00:03]}  Rh1 {[%clk 0:00:01]} 56. Ng3 {[%clk 0:00:03]}  Rh3 {[%clk 0:00:02]} 57. Ne2+ {[%clk 0:00:01]}  Ke3 {[%clk 0:00:02]} 58. Ng1 {[%clk 0:00:02]}  Rh4 {[%clk 0:00:02]} 59. Kg5 {[%clk 0:00:01]}  Rh1 {[%clk 0:00:03]} 60. h6 {[%clk 0:00:02]}  Be4 {[%clk 0:00:03]} 61. Nh3 {[%clk 0:00:01]}  Rxh3 {[%clk 0:00:03]} 62. Kf6 {[%clk 0:00:02]}  Rxh6+ {[%clk 0:00:04]} 63. Ke5 {[%clk 0:00:01]}  Bf5 {[%clk 0:00:05]} 0-1


[Site "https://www.chess.com"]

[Event "Titled Tuesday Blitz July 4 Early 2023"]
[White "Shvedova, Alexandra"]
[Black "Panesar Vedant"]
[WhiteFideId "54154782"]
[BlackFideId "35033018"]
[WhiteElo "2540"]
[BlackElo "2710"]
[Result "0-1"]
[Round "4"]
[TimeControl "180+2"]
[Date "2023.07.04"]
[WhiteClock "0:00:14"]
[BlackClock "0:00:10"]
[Board "64"]

1. d4 {[%clk 0:03:00]}  d5 {[%clk 0:02:53]} 2. c4 {[%clk 0:03:00]}  c6 {[%clk 0:02:53]} 3. Nf3 {[%clk 0:02:59]}  Nf6 {[%clk 0:02:54]} 4. g3 {[%clk 0:02:58]}  e6 {[%clk 0:02:52]} 5. Bg2 {[%clk 0:02:57]}  Nbd7 {[%clk 0:02:52]} 6. O-O {[%clk 0:02:57]}  dxc4 {[%clk 0:02:52]} 7. a4 {[%clk 0:02:54]}  b6 {[%clk 0:02:53]} 8. Na3 {[%clk 0:02:53]}  Ba6 {[%clk 0:02:50]} 9. Qc2 {[%clk 0:02:51]}  Bxa3 {[%clk 0:02:46]} 10. Rxa3 {[%clk 0:02:52]}  O-O {[%clk 0:02:47]} 11. Nd2 {[%clk 0:02:45]}  Rc8 {[%clk 0:02:36]} 12. Nxc4 {[%clk 0:02:41]}  c5 {[%clk 0:02:37]} 13. Nd6 {[%clk 0:02:35]}  Rc7 {[%clk 0:02:35]} 14. Qd1 {[%clk 0:02:12]}  Qe7 {[%clk 0:02:03]} 15. Nb5 {[%clk 0:02:08]}  Bxb5 {[%clk 0:02:04]} 16. axb5 {[%clk 0:02:09]}  cxd4 {[%clk 0:02:04]} 17. Qxd4 {[%clk 0:02:09]}  Nc5 {[%clk 0:02:03]} 18. Bg5 {[%clk 0:02:01]}  Rd8 {[%clk 0:02:01]} 19. Qe5 {[%clk 0:01:56]}  h6 {[%clk 0:01:42]} 20. Bxf6 {[%clk 0:01:56]}  gxf6 {[%clk 0:01:42]} 21. Qf4 {[%clk 0:01:56]}  Kg7 {[%clk 0:01:41]} 22. h4 {[%clk 0:01:51]}  Rcd7 {[%clk 0:01:37]} 23. Kh2 {[%clk 0:01:42]}  Rd2 {[%clk 0:01:27]} 24. b4 {[%clk 0:01:37]}  R2d4 {[%clk 0:01:22]} 25. e4 {[%clk 0:01:30]}  Rxb4 {[%clk 0:01:03]} 26. Qg4+ {[%clk 0:01:29]}  Kf8 {[%clk 0:00:59]} 27. Qf4 {[%clk 0:01:23]}  Kg7 {[%clk 0:00:58]} 28. Qg4+ {[%clk 0:01:24]}  Kh7 {[%clk 0:00:58]} 29. Qe2 {[%clk 0:01:23]}  Ra4 {[%clk 0:00:51]} 30. Rxa4 {[%clk 0:01:20]}  Nxa4 {[%clk 0:00:52]} 31. e5 {[%clk 0:01:20]}  Nc5 {[%clk 0:00:48]} 32. Qc2+ {[%clk 0:01:18]}  Kg7 {[%clk 0:00:46]} 33. Qe2 {[%clk 0:01:11]}  fxe5 {[%clk 0:00:43]} 34. Qxe5+ {[%clk 0:01:10]}  Qf6 {[%clk 0:00:44]} 35. Qe2 {[%clk 0:01:09]}  Rd4 {[%clk 0:00:37]} 36. Qe3 {[%clk 0:01:03]}  Rd3 {[%clk 0:00:35]} 37. Qe2 {[%clk 0:01:00]}  Qd4 {[%clk 0:00:34]} 38. h5 {[%clk 0:00:42]}  Rd2 {[%clk 0:00:31]} 39. Qf3 {[%clk 0:00:41]}  Nd3 {[%clk 0:00:27]} 40. Kg1 {[%clk 0:00:31]}  Ne5 {[%clk 0:00:25]} 41. Qa3 {[%clk 0:00:28]}  Ng4 {[%clk 0:00:24]} 42. Qf3 {[%clk 0:00:26]}  Rd3 {[%clk 0:00:23]} 43. Qb7 {[%clk 0:00:23]}  Rxg3 {[%clk 0:00:18]} 44. Kh1 {[%clk 0:00:23]}  Nxf2+ {[%clk 0:00:16]} 45. Kg1 {[%clk 0:00:16]}  Nd3+ {[%clk 0:00:10]} 46. Kh2 {[%clk 0:00:14]}  Qh4+ {[%clk 0:00:10]} 0-1


[Site "https://www.chess.com"]

[Event "Titled Tuesday Blitz July 4 Early 2023"]
[White "Suyarov, Mukhammadzokhid"]
[Black "Osmak, Yuliia"]
[WhiteFideId "14210495"]
[BlackFideId "14101602"]
[WhiteElo "2705"]
[BlackElo "2540"]
[Result "1-0"]
[Round "4"]
[TimeControl "180+2"]
[Date "2023.07.04"]
[WhiteClock "0:02:26"]
[BlackClock "0:01:12"]
[Board "65"]

1. d4 {[%clk 0:03:00]}  Nf6 {[%clk 0:02:54]} 2. Nc3 {[%clk 0:03:01]}  d5 {[%clk 0:02:54]} 3. Bf4 {[%clk 0:03:01]}  c6 {[%clk 0:02:52]} 4. e3 {[%clk 0:03:00]}  Bf5 {[%clk 0:02:51]} 5. Nf3 {[%clk 0:03:00]}  e6 {[%clk 0:02:51]} 6. Ne5 {[%clk 0:03:01]}  Nbd7 {[%clk 0:02:50]} 7. g4 {[%clk 0:03:00]}  Bg6 {[%clk 0:02:43]} 8. h4 {[%clk 0:02:56]}  h5 {[%clk 0:02:13]} 9. Nxg6 {[%clk 0:02:56]}  fxg6 {[%clk 0:02:14]} 10. g5 {[%clk 0:02:57]}  Ne4 {[%clk 0:02:11]} 11. Nxe4 {[%clk 0:02:56]}  dxe4 {[%clk 0:02:11]} 12. Bg2 {[%clk 0:02:57]}  Qa5+ {[%clk 0:02:10]} 13. c3 {[%clk 0:02:56]}  Qf5 {[%clk 0:02:11]} 14. Qc2 {[%clk 0:02:55]}  e5 {[%clk 0:02:09]} 15. Bxe4 {[%clk 0:02:55]}  Qg4 {[%clk 0:02:05]} 16. Bxg6+ {[%clk 0:02:55]}  Kd8 {[%clk 0:02:05]} 17. dxe5 {[%clk 0:02:53]}  Bc5 {[%clk 0:02:00]} 18. Bf5 {[%clk 0:02:51]}  Qf3 {[%clk 0:02:00]} 19. Be4 {[%clk 0:02:49]}  Qg4 {[%clk 0:02:00]} 20. Rd1 {[%clk 0:02:48]}  Rf8 {[%clk 0:01:56]} 21. b4 {[%clk 0:02:29]}  Bb6 {[%clk 0:01:53]} 22. f3 {[%clk 0:02:26]}  Qe6 {[%clk 0:01:52]} 23. Rd6 {[%clk 0:02:26]}  Qe7 {[%clk 0:01:12]} 24. e6 {[%clk 0:02:26]} 1-0


[Site "https://www.chess.com"]

[Event "Titled Tuesday Blitz July 4 Early 2023"]
[White "Matinian, Nikita"]
[Black "Tikhonov, Viacheslav"]
[WhiteFideId "24129100"]
[BlackFideId "44196407"]
[WhiteElo "2700"]
[BlackElo "2539"]
[Result "1-0"]
[Round "4"]
[TimeControl "180+2"]
[Date "2023.07.04"]
[WhiteClock "0:00:08"]
[BlackClock "0:00:04"]
[Board "66"]

1. e4 {[%clk 0:03:00]}  c5 {[%clk 0:02:59]} 2. Nf3 {[%clk 0:03:01]}  d6 {[%clk 0:03:00]} 3. d4 {[%clk 0:03:01]}  cxd4 {[%clk 0:03:01]} 4. Nxd4 {[%clk 0:03:02]}  Nf6 {[%clk 0:03:01]} 5. Nc3 {[%clk 0:03:02]}  a6 {[%clk 0:02:59]} 6. Be2 {[%clk 0:03:02]}  e5 {[%clk 0:02:59]} 7. Nb3 {[%clk 0:03:00]}  Be7 {[%clk 0:02:59]} 8. g4 {[%clk 0:02:57]}  Be6 {[%clk 0:02:56]} 9. g5 {[%clk 0:02:57]}  Nfd7 {[%clk 0:02:56]} 10. h4 {[%clk 0:02:57]}  b5 {[%clk 0:02:50]} 11. a4 {[%clk 0:02:55]}  b4 {[%clk 0:02:47]} 12. Nd5 {[%clk 0:02:56]}  Nc6 {[%clk 0:02:45]} 13. Be3 {[%clk 0:02:53]}  Nc5 {[%clk 0:02:41]} 14. Nxc5 {[%clk 0:02:52]}  dxc5 {[%clk 0:02:42]} 15. a5 {[%clk 0:02:47]}  Nd4 {[%clk 0:02:28]} 16. Bc4 {[%clk 0:02:41]}  O-O {[%clk 0:01:53]} 17. Rg1 {[%clk 0:02:32]}  Kh8 {[%clk 0:01:48]} 18. h5 {[%clk 0:02:09]}  f5 {[%clk 0:01:38]} 19. gxf6 {[%clk 0:02:09]}  Bxf6 {[%clk 0:01:38]} 20. c3 {[%clk 0:02:07]}  bxc3 {[%clk 0:01:36]} 21. bxc3 {[%clk 0:02:08]}  Bh4 {[%clk 0:01:29]} 22. cxd4 {[%clk 0:01:50]}  cxd4 {[%clk 0:01:29]} 23. h6 {[%clk 0:01:51]}  g5 {[%clk 0:01:14]} 24. Bxd4 {[%clk 0:01:44]}  Qd6 {[%clk 0:00:51]} 25. Be3 {[%clk 0:01:39]}  Rac8 {[%clk 0:00:35]} 26. Qb3 {[%clk 0:01:15]}  Rf3 {[%clk 0:00:27]} 27. Ke2 {[%clk 0:00:47]}  Rcf8 {[%clk 0:00:27]} 28. Raf1 {[%clk 0:00:43]}  Bh3 {[%clk 0:00:28]} 29. Qb4 {[%clk 0:00:29]}  Bxf1+ {[%clk 0:00:19]} 30. Rxf1 {[%clk 0:00:30]}  Qd7 {[%clk 0:00:19]} 31. Qc3 {[%clk 0:00:15]}  Qe6 {[%clk 0:00:19]} 32. Nf4 {[%clk 0:00:06]}  Qd6 {[%clk 0:00:10]} 33. Kxf3 {[%clk 0:00:06]}  gxf4 {[%clk 0:00:07]} 34. Bb6 {[%clk 0:00:06]}  Qxh6 {[%clk 0:00:07]} 35. Ke2 {[%clk 0:00:06]}  f3+ {[%clk 0:00:07]} 36. Kd3 {[%clk 0:00:06]}  Qd6+ {[%clk 0:00:05]} 37. Bd5 {[%clk 0:00:06]}  Rd8 {[%clk 0:00:04]} 38. Rh1 {[%clk 0:00:06]}  Be7 {[%clk 0:00:03]} 39. Rh5 {[%clk 0:00:04]}  Re8 {[%clk 0:00:02]} 40. Qxe5+ {[%clk 0:00:04]}  Qxe5 {[%clk 0:00:02]} 41. Rxe5 {[%clk 0:00:05]}  Kg7 {[%clk 0:00:03]} 42. Bd4 {[%clk 0:00:04]}  Kf6 {[%clk 0:00:04]} 43. Re6+ {[%clk 0:00:04]}  Kf7 {[%clk 0:00:04]} 44. Re5+ {[%clk 0:00:05]}  Kf8 {[%clk 0:00:04]} 45. Rf5+ {[%clk 0:00:05]}  Bf6 {[%clk 0:00:04]} 46. Rxf6+ {[%clk 0:00:05]}  Ke7 {[%clk 0:00:05]} 47. Rf7+ {[%clk 0:00:06]}  Kd6 {[%clk 0:00:05]} 48. Rf6+ {[%clk 0:00:06]}  Ke7 {[%clk 0:00:05]} 49. Rxf3 {[%clk 0:00:05]}  h5 {[%clk 0:00:05]} 50. Rf7+ {[%clk 0:00:05]}  Kd6 {[%clk 0:00:05]} 51. Rf6+ {[%clk 0:00:06]}  Kd7 {[%clk 0:00:05]} 52. Rxa6 {[%clk 0:00:07]}  Rb8 {[%clk 0:00:05]} 53. Rb6 {[%clk 0:00:07]}  Rf8 {[%clk 0:00:03]} 54. e5 {[%clk 0:00:06]}  h4 {[%clk 0:00:03]} 55. e6+ {[%clk 0:00:07]}  Ke7 {[%clk 0:00:03]} 56. Bc5+ {[%clk 0:00:07]}  Kf6 {[%clk 0:00:03]} 57. Bxf8 {[%clk 0:00:07]}  h3 {[%clk 0:00:04]} 58. e7+ {[%clk 0:00:07]}  Ke5 {[%clk 0:00:03]} 59. e8=Q+ {[%clk 0:00:07]}  Kxd5 {[%clk 0:00:04]} 60. Qe4# {[%clk 0:00:08]} 1-0


[Site "https://www.chess.com"]

[Event "Titled Tuesday Blitz July 4 Early 2023"]
[White "Novikov, Evgenij"]
[Black "Cherniaiev, Tykhon"]
[WhiteFideId "4125380"]
[BlackFideId "14182360"]
[WhiteElo "2538"]
[BlackElo "2700"]
[Result "0-1"]
[Round "4"]
[TimeControl "180+2"]
[Date "2023.07.04"]
[WhiteClock "0:00:01"]
[BlackClock "0:00:06"]
[Board "67"]

1. d4 {[%clk 0:03:00]}  Nf6 {[%clk 0:02:59]} 2. c4 {[%clk 0:02:59]}  e6 {[%clk 0:02:58]} 3. Nc3 {[%clk 0:02:58]}  d5 {[%clk 0:02:59]} 4. cxd5 {[%clk 0:02:56]}  exd5 {[%clk 0:02:59]} 5. Bg5 {[%clk 0:02:56]}  Be7 {[%clk 0:02:59]} 6. e3 {[%clk 0:02:56]}  O-O {[%clk 0:03:00]} 7. Bd3 {[%clk 0:02:56]}  c6 {[%clk 0:03:00]} 8. Nge2 {[%clk 0:02:56]}  h6 {[%clk 0:02:58]} 9. Bh4 {[%clk 0:02:54]}  Nh5 {[%clk 0:02:51]} 10. Bxe7 {[%clk 0:02:47]}  Qxe7 {[%clk 0:02:52]} 11. Ng3 {[%clk 0:02:43]}  Nf4 {[%clk 0:02:16]} 12. O-O {[%clk 0:02:42]}  Nxd3 {[%clk 0:02:17]} 13. Qxd3 {[%clk 0:02:43]}  a5 {[%clk 0:02:17]} 14. f3 {[%clk 0:02:36]}  b5 {[%clk 0:02:03]} 15. Rfe1 {[%clk 0:02:24]}  Ba6 {[%clk 0:02:01]} 16. Qd2 {[%clk 0:02:12]}  Nd7 {[%clk 0:02:00]} 17. Rac1 {[%clk 0:02:06]}  Rfd8 {[%clk 0:01:23]} 18. Nce2 {[%clk 0:01:59]}  Rac8 {[%clk 0:01:05]} 19. Nf4 {[%clk 0:01:58]}  b4 {[%clk 0:01:05]} 20. b3 {[%clk 0:01:41]}  Nf6 {[%clk 0:00:37]} 21. Nf5 {[%clk 0:01:39]}  Qd7 {[%clk 0:00:35]} 22. g4 {[%clk 0:01:39]}  Re8 {[%clk 0:00:30]} 23. Rc5 {[%clk 0:01:34]}  Bb5 {[%clk 0:00:30]} 24. h3 {[%clk 0:01:28]}  Kh7 {[%clk 0:00:25]} 25. Qc2 {[%clk 0:01:28]}  g6 {[%clk 0:00:25]} 26. Nh4 {[%clk 0:01:23]}  Rg8 {[%clk 0:00:20]} 27. Nd3 {[%clk 0:01:17]}  Bxd3 {[%clk 0:00:15]} 28. Qxd3 {[%clk 0:01:18]}  Qd6 {[%clk 0:00:16]} 29. Kf2 {[%clk 0:00:56]}  Rge8 {[%clk 0:00:07]} 30. Ng2 {[%clk 0:00:55]}  Nd7 {[%clk 0:00:04]} 31. Rc2 {[%clk 0:00:53]}  c5 {[%clk 0:00:04]} 32. Rec1 {[%clk 0:00:44]}  Rc7 {[%clk 0:00:05]} 33. dxc5 {[%clk 0:00:42]}  Nxc5 {[%clk 0:00:06]} 34. Qd4 {[%clk 0:00:39]}  Rec8 {[%clk 0:00:06]} 35. Kg1 {[%clk 0:00:34]}  Ne6 {[%clk 0:00:05]} 36. Qd3 {[%clk 0:00:32]}  Rxc2 {[%clk 0:00:06]} 37. Rxc2 {[%clk 0:00:33]}  Rxc2 {[%clk 0:00:07]} 38. Qxc2 {[%clk 0:00:34]}  Qg3 {[%clk 0:00:07]} 39. Qd1 {[%clk 0:00:25]}  d4 {[%clk 0:00:06]} 40. exd4 {[%clk 0:00:26]}  Nf4 {[%clk 0:00:06]} 41. Qd2 {[%clk 0:00:16]}  Nxh3+ {[%clk 0:00:07]} 42. Kh1 {[%clk 0:00:15]}  Qxf3 {[%clk 0:00:05]} 43. d5 {[%clk 0:00:13]}  Nf2+ {[%clk 0:00:05]} 44. Kg1 {[%clk 0:00:13]}  Ne4 {[%clk 0:00:04]} 45. Qe3 {[%clk 0:00:10]}  Qxg4 {[%clk 0:00:03]} 46. Qf4 {[%clk 0:00:06]}  Qd1+ {[%clk 0:00:03]} 47. Kh2 {[%clk 0:00:06]}  Qxd5 {[%clk 0:00:03]} 48. Ne3 {[%clk 0:00:05]}  Qd6 {[%clk 0:00:03]} 49. Qxd6 {[%clk 0:00:04]}  Nxd6 {[%clk 0:00:04]} 50. Nc4 {[%clk 0:00:04]}  Nxc4 {[%clk 0:00:05]} 51. bxc4 {[%clk 0:00:04]}  Kg7 {[%clk 0:00:05]} 52. c5 {[%clk 0:00:04]}  Kf8 {[%clk 0:00:05]} 53. c6 {[%clk 0:00:01]}  Ke7 {[%clk 0:00:06]} 0-1


[Site "https://www.chess.com"]